[Event "Early-Titled-Tuesday-Blitz-May-07-2024"]
[Site "Chess.com"]
[Date "2024.05.07"]
[Round "1"]
[White "Mrlammy"]
[Black "GMthekingindian"]
[Result "1-0"]
[WhiteElo "2592"]
[BlackElo "2252"]
[TimeControl "180+1"]
[EndTime "8:06:56 PDT"]
[Termination "Mrlammy won on time"]

1. d4 {[%clk 0:02:59.8]} 1... d5 {[%clk 0:02:58.2]} 2. c4 {[%clk 0:02:59.7]}
2... e6 {[%clk 0:02:56.6]} 3. Nf3 {[%clk 0:02:59.3]} 3... Nf6 {[%clk 0:02:57]}
4. Nc3 {[%clk 0:02:59.5]} 4... c5 {[%clk 0:02:56.6]} 5. cxd5 {[%clk 0:02:59.1]}
5... Nxd5 {[%clk 0:02:57.2]} 6. e4 {[%clk 0:02:58.8]} 6... Nxc3 {[%clk
0:02:57.8]} 7. bxc3 {[%clk 0:02:59.7]} 7... cxd4 {[%clk 0:02:58.6]} 8. cxd4
{[%clk 0:03:00.6]} 8... Bb4+ {[%clk 0:02:58.7]} 9. Bd2 {[%clk 0:03:00.9]} 9...
Bxd2+ {[%clk 0:02:59.4]} 10. Qxd2 {[%clk 0:03:01.8]} 10... O-O {[%clk
0:02:59.6]} 11. Bc4 {[%clk 0:03:01.7]} 11... b6 {[%clk 0:02:55.8]} 12. O-O
{[%clk 0:03:01.4]} 12... Nd7 {[%clk 0:02:39.5]} 13. Rfe1 {[%clk 0:02:59]} 13...
Bb7 {[%clk 0:02:32.1]} 14. Rad1 {[%clk 0:02:58.4]} 14... Rc8 {[%clk 0:02:24.7]}
15. Bb3 {[%clk 0:02:58.4]} 15... Re8 {[%clk 0:02:19.4]} 16. h3 {[%clk
0:02:56.8]} 16... Nf6 {[%clk 0:02:18.8]} 17. Qf4 {[%clk 0:02:47.1]} 17... Nh5
{[%clk 0:02:18.1]} 18. Qh2 {[%clk 0:02:38.6]} 18... h6 {[%clk 0:02:17.9]} 19.
Re3 {[%clk 0:02:09.1]} 19... Qc7 {[%clk 0:01:33]} 20. Qxc7 {[%clk 0:01:58.5]}
20... Rxc7 {[%clk 0:01:32.6]} 21. g3 {[%clk 0:01:42.7]} 21... Nf6 {[%clk
0:01:26.4]} 22. Nd2 {[%clk 0:01:25.7]} 22... Rd8 {[%clk 0:01:25.9]} 23. e5
{[%clk 0:01:07.8]} 23... Nd5 {[%clk 0:00:45.7]} 24. Bxd5 {[%clk 0:00:58.3]}
24... Rxd5 {[%clk 0:00:46.6]} 25. Ne4 {[%clk 0:00:51.6]} 25... Rc2 {[%clk
0:00:19.1]} 26. a3 {[%clk 0:00:35.6]} 26... Bc6 {[%clk 0:00:11.3]} 27. g4 {[%clk
0:00:25.9]} 27... Rc4 {[%clk 0:00:09]} 28. Red3 {[%clk 0:00:21.4]} 28... b5
{[%clk 0:00:08.7]} 29. Nd6 {[%clk 0:00:20.4]} 29... Ra4 {[%clk 0:00:08.9]} 30.
Rc3 {[%clk 0:00:19.6]} 30... Bd7 {[%clk 0:00:03.4]} 31. Rc7 {[%clk 0:00:19.5]}
1-0

[Event "Early-Titled-Tuesday-Blitz-May-07-2024"]
[Site "Chess.com"]
[Date "2024.05.07"]
[Round "1"]
[White "BestStelker"]
[Black "Zheenbekov86"]
[Result "1-0"]
[WhiteElo "2728"]
[BlackElo "2417"]
[TimeControl "180+1"]
[EndTime "8:06:57 PDT"]
[Termination "BestStelker won on time"]

1. Nf3 {[%clk 0:02:59.3]} 1... Nf6 {[%clk 0:02:58.8]} 2. c4 {[%clk 0:03:00.2]}
2... c6 {[%clk 0:02:58.6]} 3. e3 {[%clk 0:02:58.9]} 3... d5 {[%clk 0:02:58.5]}
4. d4 {[%clk 0:02:59.6]} 4... g6 {[%clk 0:02:54.9]} 5. Nc3 {[%clk 0:02:58.8]}
5... Bg7 {[%clk 0:02:54.5]} 6. Be2 {[%clk 0:02:59.5]} 6... O-O {[%clk
0:02:54.2]} 7. O-O {[%clk 0:03:00.1]} 7... a5 {[%clk 0:02:53.7]} 8. cxd5 {[%clk
0:02:56.6]} 8... Nxd5 {[%clk 0:02:52.8]} 9. Bd2 {[%clk 0:02:43.4]} 9... Na6
{[%clk 0:02:50.8]} 10. Rc1 {[%clk 0:02:38.7]} 10... Nac7 {[%clk 0:02:47.9]} 11.
Na4 {[%clk 0:02:30]} 11... Re8 {[%clk 0:02:34.7]} 12. Nc5 {[%clk 0:02:24.6]}
12... Ne6 {[%clk 0:02:11.6]} 13. Nd3 {[%clk 0:02:13.2]} 13... Nf6 {[%clk
0:01:58]} 14. Nfe5 {[%clk 0:02:05.5]} 14... Ne4 {[%clk 0:01:55.6]} 15. Be1
{[%clk 0:02:00.9]} 15... Qb6 {[%clk 0:01:41.2]} 16. f3 {[%clk 0:01:49.7]} 16...
Nf6 {[%clk 0:01:30.1]} 17. Bf2 {[%clk 0:01:48.4]} 17... Qd8 {[%clk 0:01:21.1]}
18. Nc4 {[%clk 0:01:44.1]} 18... Nd5 {[%clk 0:01:12.5]} 19. Qd2 {[%clk
0:01:36.9]} 19... Nb4 {[%clk 0:00:54]} 20. Nxb4 {[%clk 0:01:10.2]} 20... axb4
{[%clk 0:00:53.9]} 21. Qxb4 {[%clk 0:01:11.1]} 21... Rxa2 {[%clk 0:00:53.3]} 22.
Na3 {[%clk 0:01:08.1]} 22... Nc7 {[%clk 0:00:51]} 23. Bc4 {[%clk 0:01:01.2]}
23... Nd5 {[%clk 0:00:20]} 24. Qb3 {[%clk 0:00:58.3]} 24... Rxa3 {[%clk
0:00:19.7]} 25. bxa3 {[%clk 0:00:55.4]} 25... Be6 {[%clk 0:00:16.1]} 26. a4
{[%clk 0:00:51]} 26... Qa5 {[%clk 0:00:09.4]} 27. Qxb7 {[%clk 0:00:41]} 27...
Qxa4 {[%clk 0:00:08.5]} 28. Bb3 {[%clk 0:00:34.5]} 28... Qa3 {[%clk 0:00:07.6]}
29. Qxc6 {[%clk 0:00:25.8]} 1-0

[Event "Early-Titled-Tuesday-Blitz-May-07-2024"]
[Site "Chess.com"]
[Date "2024.05.07"]
[Round "1"]
[White "Iball95"]
[Black "faraone99"]
[Result "1/2-1/2"]
[WhiteElo "2919"]
[BlackElo "2521"]
[TimeControl "180+1"]
[EndTime "8:06:59 PDT"]
[Termination "Game drawn by repetition"]

1. e4 {[%clk 0:02:59.3]} 1... e5 {[%clk 0:02:59.5]} 2. Nf3 {[%clk 0:02:56.9]}
2... Nc6 {[%clk 0:02:59.4]} 3. Nc3 {[%clk 0:02:57.3]} 3... Nf6 {[%clk
0:02:59.1]} 4. Bb5 {[%clk 0:02:57.4]} 4... Bb4 {[%clk 0:02:58.3]} 5. Nd5 {[%clk
0:02:57.4]} 5... Bd6 {[%clk 0:02:50.7]} 6. O-O {[%clk 0:02:57.4]} 6... a6 {[%clk
0:02:48.4]} 7. Bc4 {[%clk 0:02:54.5]} 7... O-O {[%clk 0:02:43.6]} 8. Re1 {[%clk
0:02:54.4]} 8... Bc5 {[%clk 0:02:28.6]} 9. c3 {[%clk 0:02:53.7]} 9... Ba7 {[%clk
0:02:22]} 10. d4 {[%clk 0:02:52.4]} 10... Na5 {[%clk 0:02:22.8]} 11. dxe5 {[%clk
0:02:43.9]} 11... Ng4 {[%clk 0:02:10.9]} 12. Nd4 {[%clk 0:02:32.7]} 12... Nxf2
{[%clk 0:02:05.9]} 13. Kxf2 {[%clk 0:02:16.9]} 13... Nxc4 {[%clk 0:02:05.9]} 14.
Qh5 {[%clk 0:02:02.6]} 14... c6 {[%clk 0:01:35.5]} 15. Ne3 {[%clk 0:01:53]}
15... Nxe3 {[%clk 0:01:31.9]} 16. Bxe3 {[%clk 0:01:53.5]} 16... d6 {[%clk
0:01:28.8]} 17. Bg5 {[%clk 0:01:41.5]} 17... Qc7 {[%clk 0:01:20.7]} 18. exd6
{[%clk 0:01:31.6]} 18... Qxd6 {[%clk 0:01:21.6]} 19. Rad1 {[%clk 0:01:32]} 19...
Qg6 {[%clk 0:01:21.6]} 20. Qxg6 {[%clk 0:01:29.3]} 20... hxg6 {[%clk 0:01:22.5]}
21. Kf3 {[%clk 0:01:25.9]} 21... f6 {[%clk 0:01:19.7]} 22. Bf4 {[%clk
0:01:25.4]} 22... Kf7 {[%clk 0:01:19.9]} 23. h3 {[%clk 0:01:24.9]} 23... Be6
{[%clk 0:01:06.3]} 24. Nxe6 {[%clk 0:01:19.4]} 24... Kxe6 {[%clk 0:01:07.2]} 25.
Rd6+ {[%clk 0:01:20]} 25... Ke7 {[%clk 0:01:07.4]} 26. Red1 {[%clk 0:01:19.8]}
26... Rad8 {[%clk 0:01:05.9]} 27. e5 {[%clk 0:01:04.6]} 27... Rxd6 {[%clk
0:01:03.8]} 28. exd6+ {[%clk 0:01:05.5]} 28... Kd7 {[%clk 0:01:03.9]} 29. b4
{[%clk 0:01:02.9]} 29... c5 {[%clk 0:00:57.6]} 30. Re1 {[%clk 0:00:57]} 30...
Re8 {[%clk 0:00:57.1]} 31. Rxe8 {[%clk 0:00:57]} 31... Kxe8 {[%clk 0:00:58]} 32.
Ke4 {[%clk 0:00:57.9]} 32... Kd7 {[%clk 0:00:58.3]} 33. Kd5 {[%clk 0:00:58.2]}
33... cxb4 {[%clk 0:00:58.8]} 34. cxb4 {[%clk 0:00:59.1]} 34... Bf2 {[%clk
0:00:58.5]} 35. a4 {[%clk 0:00:51]} 35... Be1 {[%clk 0:00:58.3]} 36. b5 {[%clk
0:00:51.1]} 36... axb5 {[%clk 0:00:58.3]} 37. axb5 {[%clk 0:00:52]} 37... Bf2
{[%clk 0:00:58.8]} 38. Bh2 {[%clk 0:00:50.7]} 38... Be3 {[%clk 0:00:58.7]} 39.
Bg3 {[%clk 0:00:50.8]} 39... Bg1 {[%clk 0:00:58.8]} 40. Be1 {[%clk 0:00:49.9]}
40... Bh2 {[%clk 0:00:56.6]} 41. Bb4 {[%clk 0:00:50.1]} 41... Bg3 {[%clk
0:00:56.7]} 42. Bc5 {[%clk 0:00:50.4]} 42... Bf4 {[%clk 0:00:56]} 43. Bb4 {[%clk
0:00:44.9]} 43... Bg3 {[%clk 0:00:56.2]} 44. Ba3 {[%clk 0:00:38.7]} 44... Bf4
{[%clk 0:00:56.1]} 45. g4 {[%clk 0:00:38.3]} 45... Bg3 {[%clk 0:00:55.4]} 46.
Bb4 {[%clk 0:00:39]} 46... Bf4 {[%clk 0:00:55.4]} 47. h4 {[%clk 0:00:38.7]}
47... Bg3 {[%clk 0:00:55.1]} 48. h5 {[%clk 0:00:39.2]} 48... gxh5 {[%clk
0:00:54.5]} 49. gxh5 {[%clk 0:00:40.1]} 49... Bf4 {[%clk 0:00:54.8]} 50. Ba3
{[%clk 0:00:35.5]} 50... Bg3 {[%clk 0:00:54.6]} 51. Bb4 {[%clk 0:00:31.2]} 51...
Bh2 {[%clk 0:00:54.5]} 52. Ba3 {[%clk 0:00:27.6]} 52... Bg3 {[%clk 0:00:54.6]}
53. Bb4 {[%clk 0:00:27.3]} 1/2-1/2

[Event "Early-Titled-Tuesday-Blitz-May-07-2024"]
[Site "Chess.com"]
[Date "2024.05.07"]
[Round "1"]
[White "schachlana"]
[Black "profedechess93"]
[Result "0-1"]
[WhiteElo "2356"]
[BlackElo "2654"]
[TimeControl "180+1"]
[EndTime "8:06:59 PDT"]
[Termination "profedechess93 won by resignation"]

1. e4 {[%clk 0:03:00.9]} 1... e6 {[%clk 0:03:00.1]} 2. d4 {[%clk 0:02:59.6]}
2... d5 {[%clk 0:03:00.7]} 3. Nd2 {[%clk 0:02:59.6]} 3... Be7 {[%clk 0:03:00.3]}
4. Bd3 {[%clk 0:02:57.6]} 4... c5 {[%clk 0:02:59.4]} 5. c3 {[%clk 0:02:57.6]}
5... cxd4 {[%clk 0:02:59.2]} 6. cxd4 {[%clk 0:02:56.5]} 6... dxe4 {[%clk
0:02:59.8]} 7. Nxe4 {[%clk 0:02:57.4]} 7... Nf6 {[%clk 0:03:00.4]} 8. Nf3 {[%clk
0:02:56.1]} 8... Nc6 {[%clk 0:03:00.7]} 9. O-O {[%clk 0:02:55]} 9... O-O {[%clk
0:02:58.9]} 10. Be3 {[%clk 0:02:53.8]} 10... Nb4 {[%clk 0:02:56]} 11. Nxf6+
{[%clk 0:02:49.3]} 11... Bxf6 {[%clk 0:02:55.2]} 12. Be4 {[%clk 0:02:49.9]}
12... Nd5 {[%clk 0:02:50.3]} 13. Rc1 {[%clk 0:02:49]} 13... b6 {[%clk
0:02:47.1]} 14. Ne5 {[%clk 0:02:32.7]} 14... Bb7 {[%clk 0:02:44.7]} 15. Qb3
{[%clk 0:02:28.9]} 15... Qd6 {[%clk 0:02:24.7]} 16. Ng4 {[%clk 0:02:12.3]} 16...
Be7 {[%clk 0:02:22.8]} 17. Rfd1 {[%clk 0:02:11.5]} 17... f5 {[%clk 0:02:21.1]}
18. Ne5 {[%clk 0:01:23.1]} 18... fxe4 {[%clk 0:02:16.5]} 19. Qc2 {[%clk
0:01:20.3]} 19... Nxe3 {[%clk 0:02:10.8]} 20. fxe3 {[%clk 0:01:18.8]} 20... Bg5
{[%clk 0:02:09.4]} 21. Qe2 {[%clk 0:01:13.4]} 21... Bd5 {[%clk 0:02:01.6]} 22.
g3 {[%clk 0:01:10.2]} 22... Rac8 {[%clk 0:01:55]} 23. Rxc8 {[%clk 0:01:08.8]}
23... Rxc8 {[%clk 0:01:54.2]} 24. Rf1 {[%clk 0:01:07.9]} 24... Rf8 {[%clk
0:01:51.8]} 25. Rc1 {[%clk 0:01:08.2]} 25... Bxa2 {[%clk 0:01:28.5]} 26. Rc6
{[%clk 0:01:00.2]} 26... Qe7 {[%clk 0:01:18.2]} 27. h4 {[%clk 0:00:55.4]} 27...
Bh6 {[%clk 0:01:15.5]} 28. Kg2 {[%clk 0:00:47.5]} 28... Bd5 {[%clk 0:01:15]} 29.
Rc1 {[%clk 0:00:44.6]} 29... g6 {[%clk 0:01:11.3]} 30. Kh3 {[%clk 0:00:37.5]}
30... Qf6 {[%clk 0:01:03.2]} 31. Rc7 {[%clk 0:00:31.1]} 31... Qf1+ {[%clk
0:00:47.5]} 32. Qxf1 {[%clk 0:00:29.4]} 32... Rxf1 {[%clk 0:00:48.4]} 33. Rxa7
{[%clk 0:00:23.8]} 33... Bxe3 {[%clk 0:00:41.6]} 34. Ng4 {[%clk 0:00:20.3]}
34... Bxd4 {[%clk 0:00:35.1]} 35. Nh6+ {[%clk 0:00:20.3]} 35... Kf8 {[%clk
0:00:34.7]} 36. Rc7 {[%clk 0:00:18]} 36... e3 {[%clk 0:00:32.6]} 37. g4 {[%clk
0:00:17.2]} 37... e2 {[%clk 0:00:31.3]} 38. Rc8+ {[%clk 0:00:16.3]} 38... Ke7
{[%clk 0:00:31.2]} 39. Rc7+ {[%clk 0:00:15.9]} 39... Kd6 {[%clk 0:00:31.5]} 40.
Rc8 {[%clk 0:00:14.3]} 0-1

[Event "Early-Titled-Tuesday-Blitz-May-07-2024"]
[Site "Chess.com"]
[Date "2024.05.07"]
[Round "1"]
[White "HouseOfDurin"]
[Black "Djager97"]
[Result "1/2-1/2"]
[WhiteElo "2200"]
[BlackElo "2570"]
[TimeControl "180+1"]
[EndTime "8:06:59 PDT"]
[Termination "Game drawn by repetition"]

1. d4 {[%clk 0:03:00.9]} 1... d5 {[%clk 0:02:59.5]} 2. Bg5 {[%clk 0:03:00.6]}
2... Nf6 {[%clk 0:02:58.9]} 3. Bxf6 {[%clk 0:03:00.3]} 3... gxf6 {[%clk
0:02:58.9]} 4. c4 {[%clk 0:03:00.3]} 4... c6 {[%clk 0:02:31.6]} 5. cxd5 {[%clk
0:03:00]} 5... cxd5 {[%clk 0:02:30]} 6. Nc3 {[%clk 0:03:00.1]} 6... Nc6 {[%clk
0:02:28.8]} 7. e3 {[%clk 0:02:59.8]} 7... e6 {[%clk 0:02:22.1]} 8. a3 {[%clk
0:02:59.5]} 8... Bd6 {[%clk 0:02:21.7]} 9. g3 {[%clk 0:02:59.3]} 9... h5 {[%clk
0:02:12.7]} 10. h4 {[%clk 0:02:58.9]} 10... f5 {[%clk 0:01:57.7]} 11. Bg2 {[%clk
0:02:58.9]} 11... Qf6 {[%clk 0:01:53.1]} 12. Nge2 {[%clk 0:02:58.9]} 12... Bd7
{[%clk 0:01:51.7]} 13. b4 {[%clk 0:02:54.1]} 13... a5 {[%clk 0:01:37.7]} 14. b5
{[%clk 0:02:53.2]} 14... Ne7 {[%clk 0:01:37.6]} 15. Qb3 {[%clk 0:02:34.8]} 15...
Kf8 {[%clk 0:01:34]} 16. Na4 {[%clk 0:02:15.1]} 16... Kg7 {[%clk 0:01:32.7]} 17.
Nb6 {[%clk 0:02:14.2]} 17... Rad8 {[%clk 0:01:31.6]} 18. Nxd7 {[%clk 0:01:41.4]}
18... Rxd7 {[%clk 0:01:32.5]} 19. Rc1 {[%clk 0:01:37.6]} 19... Nc8 {[%clk
0:01:14.2]} 20. b6 {[%clk 0:01:28.8]} 20... Qd8 {[%clk 0:01:12.4]} 21. Rb1
{[%clk 0:01:27.7]} 21... Be7 {[%clk 0:00:52]} 22. Nc3 {[%clk 0:01:27.6]} 22...
Rd6 {[%clk 0:00:50]} 23. Na4 {[%clk 0:01:26.9]} 23... Rc6 {[%clk 0:00:48.3]} 24.
Kd2 {[%clk 0:01:20.2]} 24... Nd6 {[%clk 0:00:48.1]} 25. Rhc1 {[%clk 0:01:18.1]}
25... Nc4+ {[%clk 0:00:48.2]} 26. Ke1 {[%clk 0:01:12.1]} 26... Bxh4 {[%clk
0:00:27.4]} 27. Bf1 {[%clk 0:01:04.3]} 27... Be7 {[%clk 0:00:18.2]} 28. Bxc4
{[%clk 0:01:01.2]} 28... dxc4 {[%clk 0:00:19.1]} 29. Rxc4 {[%clk 0:01:01.3]}
29... Rxc4 {[%clk 0:00:17.1]} 30. Qxc4 {[%clk 0:01:01.9]} 30... h4 {[%clk
0:00:18]} 31. gxh4 {[%clk 0:01:00.6]} 31... Rxh4 {[%clk 0:00:16.6]} 32. Ke2
{[%clk 0:01:00.3]} 32... Rh2 {[%clk 0:00:13.5]} 33. Rg1+ {[%clk 0:00:59.2]}
33... Kf8 {[%clk 0:00:11.2]} 34. Qc7 {[%clk 0:00:52.6]} 34... Qd5 {[%clk
0:00:10.6]} 35. Qxh2 {[%clk 0:00:51.8]} 35... Qc4+ {[%clk 0:00:06.4]} 36. Kf3
{[%clk 0:00:40.8]} 36... Qd5+ {[%clk 0:00:06.5]} 37. Ke2 {[%clk 0:00:38.6]}
37... Qc4+ {[%clk 0:00:07]} 38. Ke1 {[%clk 0:00:36]} 38... Qc1+ {[%clk 0:00:06]}
39. Ke2 {[%clk 0:00:34.5]} 39... Qc4+ {[%clk 0:00:05.5]} 1/2-1/2

[Event "Early-Titled-Tuesday-Blitz-May-07-2024"]
[Site "Chess.com"]
[Date "2024.05.07"]
[Round "1"]
[White "Boundless_Strike"]
[Black "IndianSchoolOfSuffering"]
[Result "1/2-1/2"]
[WhiteElo "2656"]
[BlackElo "2379"]
[TimeControl "180+1"]
[EndTime "8:07:01 PDT"]
[Termination "Game drawn by repetition"]

1. d4 {[%clk 0:03:00.9]} 1... Nf6 {[%clk 0:02:59.1]} 2. f3 {[%clk 0:02:54]} 2...
d5 {[%clk 0:02:55.4]} 3. e4 {[%clk 0:02:51.2]} 3... dxe4 {[%clk 0:02:54.4]} 4.
Nc3 {[%clk 0:02:51.5]} 4... e3 {[%clk 0:02:44.1]} 5. Bxe3 {[%clk 0:02:47.8]}
5... g6 {[%clk 0:02:39.7]} 6. Qd2 {[%clk 0:02:45.6]} 6... Bg7 {[%clk 0:02:36.2]}
7. O-O-O {[%clk 0:02:25]} 7... Nbd7 {[%clk 0:02:33]} 8. h4 {[%clk 0:02:15.9]}
8... h5 {[%clk 0:02:30.7]} 9. Nh3 {[%clk 0:02:05.8]} 9... Nb6 {[%clk 0:02:25]}
10. Nf4 {[%clk 0:01:48.6]} 10... c6 {[%clk 0:02:17.6]} 11. Ne4 {[%clk
0:01:24.1]} 11... Nbd5 {[%clk 0:02:15.7]} 12. Ng5 {[%clk 0:01:16.9]} 12... Nxf4
{[%clk 0:02:11.3]} 13. Bxf4 {[%clk 0:01:16.5]} 13... Nd5 {[%clk 0:02:08.6]} 14.
Bh2 {[%clk 0:01:00.1]} 14... Bf5 {[%clk 0:02:04.4]} 15. c4 {[%clk 0:00:47.8]}
15... Nf6 {[%clk 0:02:02.9]} 16. Be2 {[%clk 0:00:40.2]} 16... Qd7 {[%clk
0:01:59]} 17. Qa5 {[%clk 0:00:32.5]} 17... O-O {[%clk 0:01:53.6]} 18. Bd3 {[%clk
0:00:21]} 18... Bxd3 {[%clk 0:01:51.3]} 19. Rxd3 {[%clk 0:00:21.9]} 19... b6
{[%clk 0:01:51]} 20. Qd2 {[%clk 0:00:16.1]} 20... Rad8 {[%clk 0:01:49.6]} 21.
Rd1 {[%clk 0:00:14.7]} 21... Qf5 {[%clk 0:01:49.3]} 22. Qe2 {[%clk 0:00:12.2]}
22... Rfe8 {[%clk 0:01:41.6]} 23. Be5 {[%clk 0:00:11.2]} 23... Nh7 {[%clk
0:01:38]} 24. Bxg7 {[%clk 0:00:10.9]} 24... Kxg7 {[%clk 0:01:35]} 25. Ne4 {[%clk
0:00:09.7]} 25... Nf6 {[%clk 0:01:33.2]} 26. Kb1 {[%clk 0:00:09.7]} 26... Qf4
{[%clk 0:01:26.3]} 27. g3 {[%clk 0:00:09.5]} 27... Qf5 {[%clk 0:01:25.8]} 28.
Ka1 {[%clk 0:00:08.3]} 28... e5 {[%clk 0:01:17.8]} 29. dxe5 {[%clk 0:00:07.6]}
29... Nxe4 {[%clk 0:01:15.5]} 30. Rxd8 {[%clk 0:00:05.2]} 30... Nxg3 {[%clk
0:01:15.2]} 31. Qd2 {[%clk 0:00:02.9]} 31... Rxe5 {[%clk 0:01:13]} 32. a3 {[%clk
0:00:01.8]} 32... Qf6 {[%clk 0:01:11.3]} 33. Rd6 {[%clk 0:00:01.8]} 33... Re6
{[%clk 0:01:03.5]} 34. Rxe6 {[%clk 0:00:01.8]} 34... Qxe6 {[%clk 0:01:03.7]} 35.
Qd4+ {[%clk 0:00:02.4]} 35... Kh7 {[%clk 0:01:03]} 36. Qf4 {[%clk 0:00:02.6]}
36... Nf5 {[%clk 0:01:02.5]} 37. Ka2 {[%clk 0:00:02.9]} 37... b5 {[%clk
0:01:01.8]} 38. Rc1 {[%clk 0:00:03.2]} 38... a5 {[%clk 0:01:01.3]} 39. Ka1
{[%clk 0:00:03.3]} 39... b4 {[%clk 0:01:00.3]} 40. axb4 {[%clk 0:00:03.7]} 40...
axb4 {[%clk 0:01:00.5]} 41. Ka2 {[%clk 0:00:04.5]} 41... c5 {[%clk 0:01:00.6]}
42. Kb3 {[%clk 0:00:05.1]} 42... Nd4+ {[%clk 0:01:00.1]} 43. Ka2 {[%clk
0:00:04.7]} 43... Qa6+ {[%clk 0:00:59.1]} 44. Kb1 {[%clk 0:00:04.9]} 44... b3
{[%clk 0:00:57.7]} 45. Qxf7+ {[%clk 0:00:05]} 45... Kh6 {[%clk 0:00:57.8]} 46.
Qf8+ {[%clk 0:00:05]} 46... Kh7 {[%clk 0:00:57.8]} 47. Qf7+ {[%clk 0:00:03.4]}
47... Kh6 {[%clk 0:00:58]} 48. Qf8+ {[%clk 0:00:03.2]} 48... Kh7 {[%clk
0:00:58.1]} 49. Qf7+ {[%clk 0:00:02.5]} 1/2-1/2

[Event "Early-Titled-Tuesday-Blitz-May-07-2024"]
[Site "Chess.com"]
[Date "2024.05.07"]
[Round "1"]
[White "twofoxniel"]
[Black "PapiPapita"]
[Result "1-0"]
[WhiteElo "2678"]
[BlackElo "2382"]
[TimeControl "180+1"]
[EndTime "8:07:05 PDT"]
[Termination "twofoxniel won by resignation"]

1. e4 {[%clk 0:03:00.9]} 1... c6 {[%clk 0:02:59.6]} 2. d4 {[%clk 0:03:00.2]}
2... d5 {[%clk 0:03:00.5]} 3. Nd2 {[%clk 0:03:00.3]} 3... dxe4 {[%clk
0:03:00.5]} 4. Nxe4 {[%clk 0:03:01.2]} 4... Bf5 {[%clk 0:03:00.4]} 5. Ng3 {[%clk
0:03:01]} 5... Bg6 {[%clk 0:03:00.7]} 6. Nf3 {[%clk 0:03:00.1]} 6... Nd7 {[%clk
0:03:00.4]} 7. h4 {[%clk 0:02:59.7]} 7... h6 {[%clk 0:03:00.5]} 8. h5 {[%clk
0:03:00.3]} 8... Bh7 {[%clk 0:03:00.9]} 9. Bd3 {[%clk 0:03:01.2]} 9... Bxd3
{[%clk 0:03:01.1]} 10. Qxd3 {[%clk 0:03:02.1]} 10... e6 {[%clk 0:03:01.2]} 11.
Bd2 {[%clk 0:03:02.8]} 11... Ngf6 {[%clk 0:03:01.1]} 12. O-O-O {[%clk
0:03:03.2]} 12... Qc7 {[%clk 0:02:55.8]} 13. Kb1 {[%clk 0:02:58.8]} 13... O-O-O
{[%clk 0:02:55.5]} 14. Ne4 {[%clk 0:02:54.8]} 14... Nxe4 {[%clk 0:02:54.7]} 15.
Qxe4 {[%clk 0:02:55.7]} 15... Bd6 {[%clk 0:02:55.2]} 16. c4 {[%clk 0:02:51.6]}
16... c5 {[%clk 0:02:48.3]} 17. Bc3 {[%clk 0:02:50.9]} 17... Nf6 {[%clk
0:02:34.5]} 18. Qe2 {[%clk 0:02:47.9]} 18... Rd7 {[%clk 0:02:16.8]} 19. d5
{[%clk 0:02:43.3]} 19... Re8 {[%clk 0:01:58.8]} 20. Bxf6 {[%clk 0:02:34.3]}
20... gxf6 {[%clk 0:01:58.6]} 21. g3 {[%clk 0:02:26.1]} 21... Rde7 {[%clk
0:01:47.4]} 22. Qd2 {[%clk 0:02:22.6]} 22... exd5 {[%clk 0:01:45.1]} 23. Qxd5
{[%clk 0:02:16.7]} 23... Re6 {[%clk 0:01:41.6]} 24. Nh4 {[%clk 0:02:06]} 24...
Be5 {[%clk 0:01:37]} 25. Nf5 {[%clk 0:02:01.5]} 25... Qb6 {[%clk 0:01:18.4]} 26.
Rd2 {[%clk 0:01:57.9]} 26... a5 {[%clk 0:00:58.9]} 27. Rhd1 {[%clk 0:01:56.2]}
27... a4 {[%clk 0:00:49.7]} 28. Qd7+ {[%clk 0:01:56]} 28... Kb8 {[%clk
0:00:49.6]} 29. Qxa4 {[%clk 0:01:55.4]} 29... Bd4 {[%clk 0:00:40.7]} 30. Nxd4
{[%clk 0:01:15.8]} 30... cxd4 {[%clk 0:00:41.6]} 31. Rxd4 {[%clk 0:01:15.4]}
31... Rc8 {[%clk 0:00:32.5]} 32. b3 {[%clk 0:01:09.2]} 32... Re2 {[%clk
0:00:30.4]} 33. R1d2 {[%clk 0:01:04.9]} 33... Rxf2 {[%clk 0:00:27.3]} 34. Qd7
{[%clk 0:00:54.6]} 34... Rxd2 {[%clk 0:00:21.4]} 35. Rxd2 {[%clk 0:00:54.7]}
35... Qg1+ {[%clk 0:00:22.1]} 36. Kb2 {[%clk 0:00:54.7]} 36... Qxg3 {[%clk
0:00:22]} 37. Qd6+ {[%clk 0:00:53.1]} 37... Qxd6 {[%clk 0:00:20.6]} 38. Rxd6
{[%clk 0:00:54]} 38... Rc6 {[%clk 0:00:17.3]} 39. Rxc6 {[%clk 0:00:51.4]} 39...
bxc6 {[%clk 0:00:18.2]} 40. b4 {[%clk 0:00:52]} 40... Kc7 {[%clk 0:00:18.4]} 41.
Kc3 {[%clk 0:00:52.6]} 41... Kd6 {[%clk 0:00:16.9]} 42. Kd4 {[%clk 0:00:51.6]}
42... c5+ {[%clk 0:00:16.4]} 43. bxc5+ {[%clk 0:00:51.4]} 43... Kc6 {[%clk
0:00:17]} 44. a4 {[%clk 0:00:52]} 44... f5 {[%clk 0:00:17.3]} 45. a5 {[%clk
0:00:52.7]} 45... f4 {[%clk 0:00:17.1]} 46. a6 {[%clk 0:00:53.3]} 46... f5
{[%clk 0:00:16.6]} 47. Kd3 {[%clk 0:00:53]} 47... Kc7 {[%clk 0:00:16.4]} 48. Ke2
{[%clk 0:00:52.7]} 48... Kb8 {[%clk 0:00:17]} 49. c6 {[%clk 0:00:52.8]} 49...
Kc7 {[%clk 0:00:15.7]} 50. a7 {[%clk 0:00:52.7]} 1-0